fUSD/lending_fUSD_20241227
["ID","MTS","AMOUNT","RATE_DAILY","PERIOD"]
[346772102,1735276986541,-5884.94,0.00012521,2]
[346772103,1735276986572,-761.33,0.00012521,2]
[346772104,1735276986604,-7683.03,0.00012521,2]
[346772105,1735276986637,-1262.29,0.00012521,2]
[346772106,1735276986670,-1419.491883,0.00012522,2]
[346772107,1735276986702,-1193.326939,0.00012522,2]
[346772108,1735276986733,-500.0,0.00012522,2]
[346772109,1735276986765,-500.0,0.00012522,2]
[346772110,1735276986796,-500.0,0.00012522,2]
[346772111,1735276986829,-500.0,0.00012522,2]
[346772112,1735276986864,-500.0,0.00012522,2]
[346772113,1735276986899,-500.0,0.00012522,2]
[346772114,1735276986934,-500.0,0.00012522,2]
[346772115,1735276986969,-500.0,0.00012522,2]
[346772116,1735276987003,-517.87546418,0.00012522,2]
[346772117,1735276987040,-500.0,0.00012522,2]
[346772118,1735276987076,-500.0,0.00012522,2]
[346772119,1735276987109,-500.0,0.00012522,2]
[346772120,1735276987140,-500.0,0.00012522,2]
[346772121,1735276987169,-516.09,0.00012522,2]
[346772122,1735276987199,-500.0,0.00012522,2]
[346772123,1735276987229,-500.0,0.00012522,2]
[346772124,1735276987261,-500.0,0.00012522,2]
[346772125,1735276987292,-585.56,0.00012522,2]
[346772126,1735276987322,-801.26,0.00012522,2]
[346772127,1735276987356,-500.0,0.00012522,2]
[346772128,1735276987385,-500.0,0.00012522,2]
[346772129,1735276987415,-500.0,0.00012522,2]
[346772130,1735276987447,-862.86,0.00012522,2]
[346772131,1735276987478,-500.0,0.00012522,2]
[346772132,1735276987513,-742.17,0.00012522,2]
[346772133,1735276987545,-513.45,0.00012522,2]
[346772134,1735276987575,-500.0,0.00012522,2]
[346772135,1735276987605,-500.0,0.00012522,2]
[346772136,1735276987637,-500.0,0.00012522,2]
[346772137,1735276987667,-522.47,0.00012522,2]
[346772138,1735276987697,-500.0,0.00012522,2]
[346772139,1735276987727,-500.0,0.00012522,2]
[346772140,1735276987758,-500.0,0.00012522,2]
[346772141,1735276987984,-712.54,0.00012522,2]
[346772142,1735276988022,-500.0,0.00012522,2]
[346772143,1735276988053,-500.0,0.00012522,2]
[346772144,1735276988083,-500.0,0.00012522,2]
[346772145,1735276988112,-500.0,0.00012522,2]
[346772146,1735276988143,-500.0,0.00012522,2]
[346772147,1735276988172,-500.0,0.00012522,2]
[346772148,1735276988201,-500.0,0.00012522,2]
[346772149,1735276988231,-500.0,0.00012522,2]
[346772150,1735276988261,-500.0,0.00012522,2]
[346772151,1735276988290,-500.0,0.00012522,2]
[346772152,1735276988320,-500.0,0.00012522,2]
[346772153,1735276988350,-1373.92,0.00012522,2]
[346772154,1735276988380,-563.2,0.00012522,2]
[346772155,1735276988411,-751.52,0.00012522,2]
[346772156,1735276988441,-681.72,0.00012522,2]
[346772157,1735276988471,-1971.36,0.00012522,2]
[346772158,1735276988501,-500.0,0.00012522,2]
[346772159,1735276988533,-244.11712873,0.00012522,2]
[346772160,1735276988562,-880.91,0.00012522,2]
[346772161,1735276988592,-685.0,0.00012522,2]
[346772162,1735276988622,-500.0,0.00012522,2]
[346772163,1735276988652,-1529.87,0.00012522,2]
[346772164,1735276988682,-500.0,0.00012522,2]
[346772165,1735276988712,-598.38522661,0.00012522,2]
[346772166,1735276988742,-500.0,0.00012522,2]
[346772167,1735276988773,-500.0,0.00012522,2]
[346772168,1735276988805,-506.53,0.00012522,2]
[346772169,1735276988838,-500.0,0.00012522,2]
[346772170,1735276988869,-500.0,0.00012522,2]
[346772171,1735276988900,-500.0,0.00012522,2]
[346772172,1735276988930,-500.0,0.00012522,2]
[346772173,1735276988961,-500.0,0.00012522,2]
[346772174,1735276988993,-500.0,0.00012522,2]
[346772175,1735276989026,-3249.87,0.00012522,2]
[346772176,1735276989058,-509.8,0.00012522,2]
[346772177,1735276989090,-500.0,0.00012522,2]
[346772178,1735276989120,-500.0,0.00012522,2]
[346772179,1735276989152,-500.0,0.00012522,2]
[346772180,1735276989182,-1946.31,0.00012522,2]
[346772181,1735276989213,-500.0,0.00012522,2]
[346772182,1735276989243,-500.0,0.00012522,2]
[346772183,1735276989277,-500.0,0.00012522,2]
[346772184,1735276989307,-500.0,0.00012522,2]
[346772185,1735276989339,-1235.77,0.00012522,2]
[346772186,1735276989370,-500.0,0.00012522,2]
[346772187,1735276989401,-500.0,0.00012522,2]
[346772188,1735276989432,-4080.46,0.00012522,2]
[346772189,1735276989466,-500.0,0.00012522,2]
[346772190,1735276989497,-965.08,0.00012522,2]
[346772191,1735276989529,-500.0,0.00012522,2]
[346772192,1735276989558,-570.68,0.00012522,2]
[346772193,1735276989588,-673.83,0.00012522,2]
[346772194,1735276989619,-604.35,0.00012522,2]
[346772195,1735276989650,-4521.66,0.00012522,2]
[346772196,1735276989679,-612.16,0.00012522,2]
[346772197,1735276989709,-3078.13,0.00012522,2]
[346772198,1735276989741,-910.04,0.00012522,2]
[346772199,1735276989772,-500.0,0.00012522,2]
[346772200,1735276989803,-695.6,0.00012522,2]
[346772201,1735276989835,-500.0,0.00012522,2]
[346772202,1735276989865,-495.87984999,0.00012522,2]
[346772203,1735276989897,-729.04,0.00012522,2]
[346772204,1735276989928,-500.0,0.00012522,2]
[346772205,1735276989959,-500.0,0.00012522,2]
[346772206,1735276989990,-3405.46,0.00012522,2]
[346772207,1735276990020,-1050.54,0.00012522,2]
[346772208,1735276990051,-500.0,0.00012522,2]
[346772209,1735276990080,-850.29,0.00012522,2]
[346772210,1735276990111,-13298.58,0.00012522,2]
[346772211,1735276990140,-7256.42,0.00012522,2]
[346772212,1735276990170,-500.0,0.00012522,2]
[346772213,1735276990201,-1395.75,0.00012522,2]
[346772214,1735276990231,-524.76,0.00012522,2]
[346772215,1735276990261,-1424.67,0.00012522,2]
[346772216,1735276990291,-784.32,0.00012522,2]
[346772217,1735276990321,-8585.93,0.00012522,2]
[346772218,1735276990351,-500.0,0.00012522,2]
[346772219,1735276990381,-4461.26,0.00012522,2]
[346772220,1735276990412,-4932.67,0.00012522,2]
[346772221,1735276990442,-500.0,0.00012522,2]
[346772222,1735276990472,-4590.04,0.00012522,2]
[346772223,1735276990501,-500.0,0.00012522,2]
[346772224,1735276990532,-2363.98,0.00012522,2]
[346772225,1735276990563,-565.42,0.00012522,2]
[346772226,1735276990595,-907.6,0.00012522,2]
[346772227,1735276990626,-565.42,0.00012522,2]
[346772228,1735276990657,-1316.8,0.00012522,2]
[346772229,1735276990687,-17784.62,0.00012522,2]
[346772230,1735276990718,-544.04,0.00012522,2]
[346772231,1735276990747,-2375.23,0.00012522,2]
[346772232,1735276990778,-2196.64,0.00012522,2]
[346772233,1735276990809,-500.0,0.00012522,2]
[346772234,1735276990839,-3534.81,0.00012522,2]
[346772235,1735276990869,-500.0,0.00012522,2]
[346772236,1735276990899,-865.96,0.00012522,2]
[346772237,1735276990930,-500.0,0.00012522,2]
[346772238,1735276990961,-12431.41,0.00012522,2]
[346772239,1735276990990,-547.75,0.00012522,2]
[346772240,1735276991021,-2716.36,0.00012522,2]
[346772241,1735276991051,-1289.4,0.00012522,2]
[346772242,1735276991080,-500.0,0.00012522,2]
[346772243,1735276991110,-4667.7,0.00012522,2]
[346772244,1735276991140,-500.0,0.00012522,2]
[346772245,1735276991170,-953.97,0.00012522,2]
[346772246,1735276991200,-500.0,0.00012522,2]
[346772247,1735276991230,-1196.04,0.00012522,2]
[346772248,1735276991260,-506.21167888,0.00012522,2]
[346772249,1735276991293,-500.0,0.00012522,2]
[346772250,1735276991324,-500.0,0.00012522,2]
[346772251,1735276991358,-500.0,0.00012522,2]
[346772252,1735276991391,-500.0,0.00012522,2]
[346772253,1735276991423,-704.09,0.00012522,2]
[346772254,1735276991454,-1470.58,0.00012522,2]
[346772255,1735276991486,-1255.0,0.00012522,2]
[346772256,1735276991517,-500.0,0.00012522,2]
[346772257,1735276991548,-513.23972469,0.00012522,2]
[346772258,1735276991579,-4031.31,0.00012522,2]
[346772259,1735276991610,-500.0,0.00012522,2]
[346772260,1735276991641,-500.0,0.00012522,2]
[346772261,1735276991670,-695.06,0.00012522,2]
[346772262,1735276991700,-500.0,0.00012522,2]
[346772263,1735276991728,-500.0,0.00012522,2]
[346772264,1735276991758,-500.0,0.00012522,2]
[346772265,1735276991792,-16915.55,0.00012522,2]
[346772266,1735276991823,-500.0,0.00012522,2]
[346772267,1735276991854,-2566.57,0.00012522,2]
[346772268,1735276991884,-500.0,0.00012522,2]
[346772269,1735276991915,-781.68,0.00012522,2]
[346772270,1735276991945,-833.76,0.00012522,2]
[346772271,1735276991975,-852.84,0.00012522,2]
[346772272,1735276992007,-2635.62,0.00012522,2]
[346772273,1735276992039,-509.02716845,0.00012522,2]
[346772274,1735276992069,-500.0,0.00012522,2]
[346772275,1735276992100,-9121.87,0.00012522,2]
[346772276,1735276992130,-1800.13,0.00012522,2]
[346772277,1735276992162,-500.0,0.00012522,2]
[346772278,1735276992192,-500.0,0.00012523,2]
[346772279,1735276992223,-910.43,0.00012523,2]
[346772280,1735276992255,-521.15,0.00012523,2]
[346772281,1735276992287,-508.87,0.00012523,2]
[346772282,1735276992317,-500.0,0.00012523,2]
[346772283,1735276992348,-500.0,0.00012523,2]
[346772284,1735276992380,-500.0,0.00012523,2]
[346772285,1735276992412,-500.0,0.00012523,2]
[346772286,1735276992444,-658.21,0.00012523,2]
[346772287,1735276992476,-500.0,0.00012523,2]
[346772288,1735276992508,-560.65,0.00012523,2]
[346772289,1735276992541,-500.0,0.00012523,2]
[346772290,1735276992763,-500.0,0.00012523,2]
[346772291,1735276992797,-1111.68,0.00012523,2]
[346772292,1735276992830,-1720.38,0.00012523,2]
[346772293,1735276992862,-635.38225456,0.00012523,2]
[346772294,1735276992893,-727.35,0.00012523,2]
[346772295,1735276992926,-500.0,0.00012523,2]
[346772296,1735276992959,-724.95,0.00012523,2]
[346772297,1735276992991,-500.0,0.00012523,2]
[346772298,1735276993023,-500.0,0.00012523,2]
[346772299,1735276993055,-1264.26,0.00012523,2]
[346772300,1735276993088,-529.61,0.00012523,2]
[346772301,1735276993120,-1107.67,0.00012523,2]
[346772302,1735276993150,-500.0,0.00012523,2]
[346772303,1735276993182,-500.0,0.00012523,2]
[346772304,1735276993213,-881.62,0.00012523,2]
[346772305,1735276993245,-500.0,0.00012523,2]
[346772306,1735276993280,-900.59,0.00012523,2]
[346772307,1735276993312,-500.0,0.00012523,2]
[346772308,1735276993345,-500.0,0.00012523,2]
[346772309,1735276993379,-1341.27,0.00012523,2]
[346772310,1735276993410,-500.0,0.00012523,2]
[346772311,1735276993443,-1651.6,0.00012523,2]
[346772312,1735276993475,-500.0,0.00012523,2]
[346772313,1735276993505,-500.0,0.00012523,2]
[346772314,1735276993540,-800.25,0.00012523,2]
[346772315,1735276993575,-777.38,0.00012523,2]
[346772316,1735276993605,-500.0,0.00012523,2]
[346772317,1735276993636,-1293.12,0.00012523,2]
[346772318,1735276993667,-500.0,0.00012523,2]
[346772319,1735276993701,-1048.77,0.00012523,2]
[346772320,1735276993732,-500.0,0.00012523,2]
[346772321,1735276993765,-1429.0,0.00012523,2]
[346772322,1735276993795,-500.0,0.00012523,2]
[346772323,1735276993827,-813.59,0.00012523,2]
[346772324,1735276993859,-500.0,0.00012523,2]
[346772325,1735276993890,-1758.36,0.00012523,2]
[346772326,1735276993921,-500.0,0.00012523,2]
[346772327,1735276993953,-1120.19,0.00012523,2]
[346772328,1735276993984,-1463.73,0.00012523,2]
[346772329,1735276994016,-955.0,0.00012523,2]
[346772330,1735276994046,-971.12,0.00012523,2]
[346772331,1735276994078,-500.0,0.00012523,2]
[346772332,1735276994110,-1339.31,0.00012523,2]
[346772333,1735276994142,-672.23,0.00012523,2]
[346772334,1735276994174,-1169.07,0.00012523,2]
[346772335,1735276994207,-777.79,0.00012523,2]
[346772336,1735276994239,-500.0,0.00012523,2]
[346772337,1735276994275,-500.0,0.00012523,2]
[346772338,1735276994314,-900.2,0.00012523,2]
[346772339,1735276994348,-1922.35,0.00012523,2]
[346772340,1735276994380,-1070.28,0.00012523,2]
[346772341,1735276994412,-807.41,0.00012523,2]
[346772342,1735276994444,-545.19,0.00012523,2]
[346772343,1735276994478,-1122.07,0.00012523,2]
[346772344,1735276994510,-500.0,0.00012523,2]
[346772345,1735276994546,-500.0,0.00012523,2]
[346772346,1735276994577,-509.8,0.00012523,2]
[346772347,1735276994606,-1419.87,0.00012523,2]
[346772348,1735276994635,-500.0,0.00012523,2]
[346772349,1735276994665,-1140.73,0.00012523,2]
[346772350,1735276994695,-1216.93,0.00012523,2]
[346772351,1735276994726,-500.0,0.00012523,2]
[346772352,1735276994758,-1001.69,0.00012523,2]
[346772353,1735276994789,-500.0,0.00012523,2]
[346772354,1735276994820,-500.0,0.00012523,2]
[346772355,1735276994851,-631.31,0.00012523,2]
[346772356,1735276994881,-1850.59,0.00012523,2]
[346772357,1735276994915,-516.68,0.00012523,2]
[346772358,1735276994948,-500.0,0.00012523,2]
[346772359,1735276994981,-500.0,0.00012523,2]
[346772360,1735276995019,-1390.86,0.00012523,2]
[346772361,1735276995054,-1897.14,0.00012523,2]
[346772362,1735276995086,-774.58,0.00012523,2]
[346772363,1735276995118,-500.0,0.00012523,2]
[346772364,1735276995151,-718.27,0.00012523,2]
[346772365,1735276995184,-500.0,0.00012523,2]
[346772366,1735276995217,-203.44698906,0.00012523,2]
[346772367,1735276995251,-571.22361794,0.00012523,2]
[346772368,1735276995286,-500.0,0.00012523,2]
[346772369,1735276995317,-500.0,0.00012523,2]
[346772370,1735276995348,-179.46463893,0.00012523,2]
[346772371,1735276995380,-1832.47,0.00012523,2]
[346772372,1735276995412,-1796.56,0.00012523,2]
[346772373,1735276995448,-1160.24,0.00012523,2]
[346772374,1735276995479,-1206.1,0.00012523,2]
[346772375,1735276995510,-500.0,0.00012523,2]
[346772376,1735276995545,-676.37,0.00012523,2]
[346772377,1735276995578,-1326.64,0.00012523,2]
[346772378,1735276995609,-976.99,0.00012523,2]
[346772379,1735276995640,-1300.92,0.00012523,2]
[346772380,1735276995672,-597.01,0.00012523,2]
[346772381,1735276995704,-500.0,0.00012523,2]
[346772382,1735276995735,-1134.18,0.00012523,2]
[346772383,1735276995768,-500.0,0.00012523,2]
[346772384,1735276995800,-500.0,0.00012523,2]
[346772385,1735276995833,-1879.91,0.00012523,2]
[346772386,1735276995864,-500.0,0.00012523,2]
[346772387,1735276995895,-941.89,0.00012523,2]
[346772388,1735276995926,-850.8,0.00012523,2]
[346772389,1735276995959,-1564.38,0.00012523,2]
[346772390,1735276995991,-1667.66,0.00012523,2]
[346772391,1735276996022,-1395.75,0.00012523,2]
[346772392,1735276996054,-816.17,0.00012523,2]
[346772393,1735276996085,-500.0,0.00012523,2]
[346772394,1735276996115,-812.79,0.00012523,2]
[346772395,1735276996146,-974.29,0.00012523,2]
[346772396,1735276996176,-179.79128292,0.00012523,2]
[346772397,1735276996207,-2506.43,0.00012523,2]
[346772398,1735276996239,-500.0,0.00012523,2]
[346772399,1735276996272,-708.98,0.00012523,2]
[346772400,1735276996303,-1003.67,0.00012523,2]
[346772401,1735276996333,-910.02,0.00012523,2]
[346772402,1735276996366,-500.0,0.00012523,2]
[346772403,1735276996397,-1290.29,0.00012523,2]
[346772404,1735276996429,-500.0,0.00012523,2]
[346772405,1735276996460,-1306.56,0.00012523,2]
[346772406,1735276996490,-583.12,0.00012523,2]
[346772407,1735276996521,-810.76,0.00012523,2]
[346772408,1735276996556,-1299.29,0.00012523,2]
[346772409,1735276996587,-590.59,0.00012523,2]
[346772410,1735276996617,-952.22,0.00012523,2]
[346772411,1735276996646,-1855.61,0.00012523,2]
[346772412,1735276996677,-1424.91,0.00012523,2]
[346772413,1735276996705,-500.0,0.00012523,2]
[346772414,1735276996735,-500.13,0.00012523,2]
[346772415,1735276996765,-1644.68,0.00012523,2]
[346772416,1735276996796,-687.9,0.00012523,2]
[346772417,1735276996827,-1537.27,0.00012523,2]
[346772418,1735276996858,-1025.98,0.00012523,2]
[346772419,1735276996888,-295.40398618,0.00012523,2]
[346772420,1735276996917,-500.0,0.00012523,2]
[346772421,1735276996946,-500.0,0.00012523,2]
[346772422,1735276996976,-500.0,0.00012523,2]
[346772423,1735276997007,-500.0,0.00012523,2]
[346772424,1735276997039,-670.19,0.00012523,2]
[346772425,1735276997069,-568.34,0.00012523,2]
[346772426,1735276997100,-500.0,0.00012523,2]
[346772427,1735276997130,-500.0,0.00012523,2]
[346772428,1735276997160,-500.0,0.00012523,2]
[346772429,1735276997191,-938.76,0.00012523,2]
[346772430,1735276997222,-867.6,0.00012523,2]
[346772431,1735276997254,-500.0,0.00012523,2]
[346772432,1735276997287,-529.76,0.00012523,2]
[346772433,1735276997318,-500.0,0.00012523,2]
[346772434,1735276997349,-500.0,0.00012523,2]
[346772435,1735276997383,-509.98,0.00012523,2]
[346772436,1735276997415,-1026.92,0.00012523,2]
[346772437,1735276997448,-427.49600707,0.00012523,2]
[346772438,1735276997480,-2318.93,0.00012523,2]
[346772439,1735276997509,-1959.42,0.00012523,2]
[346772440,1735276997771,-1660.75,0.00012523,2]
[346772441,1735276997801,-500.0,0.00012523,2]
[346772442,1735276997833,-500.0,0.00012523,2]
[346772443,1735276997864,-1800.13,0.00012523,2]
[346772444,1735276997895,-2956.15,0.00012523,2]
[346772445,1735276997928,-2175.77,0.00012523,2]
[346772446,1735276997960,-500.0,0.00012523,2]
[346772447,1735276997991,-500.0,0.00012524,2]
[346772448,1735276998023,-500.0,0.00012524,2]
[346772449,1735276998056,-500.0,0.00012524,2]
[346772450,1735276998089,-735.59,0.00012524,2]
[346772451,1735276998121,-544.8,0.00012524,2]
[346772452,1735276998154,-506.02797492,0.00012524,2]
[346772453,1735276998189,-500.0,0.00012524,2]
[346772454,1735276998221,-500.0,0.00012524,2]
[346772455,1735276998253,-923.64,0.00012524,2]
[346772456,1735276998287,-500.0,0.00012524,2]
[346772457,1735276998321,-1027.08,0.00012524,2]
[346772458,1735276998354,-500.0,0.00012524,2]
[346772459,1735276998387,-500.0,0.00012524,2]
[346772460,1735276998420,-500.0,0.00012524,2]
[346772461,1735276998452,-500.0,0.00012524,2]
[346772462,1735276998484,-737.73,0.00012524,2]
[346772463,1735276998515,-1467.85,0.00012524,2]
[346772464,1735276998549,-500.0,0.00012524,2]
[346772465,1735276998581,-502.75331931,0.00012524,2]
[346772466,1735276998612,-500.0,0.00012524,2]
[346772467,1735276998644,-500.0,0.00012524,2]
[346772468,1735276998677,-736.94,0.00012524,2]
[346772469,1735276998713,-500.0,0.00012524,2]
[346772470,1735276998745,-500.0,0.00012524,2]
[346772471,1735276998777,-605.15,0.00012524,2]
[346772472,1735276998809,-500.0,0.00012524,2]
[346772473,1735276998842,-505.99522633,0.00012524,2]
[346772474,1735276998874,-826.54,0.00012524,2]
[346772475,1735276998906,-848.83,0.00012524,2]
[346772476,1735276998939,-829.79,0.00012524,2]
[346772477,1735276998971,-500.0,0.00012524,2]
[346772478,1735276999005,-672.64,0.00012524,2]
[346772479,1735276999043,-833.66,0.00012524,2]
[346772480,1735276999078,-538.44,0.00012524,2]
[346772481,1735276999115,-3430.18,0.00012524,2]
[346772482,1735276999149,-500.0,0.00012524,2]
[346772483,1735276999184,-500.0,0.00012524,2]
[346772484,1735276999217,-593.0,0.00012524,2]
[346772485,1735276999250,-500.0,0.00012524,2]
[346772486,1735276999286,-500.0,0.00012524,2]
[346772487,1735276999319,-1007.96,0.00012524,2]
[346772488,1735276999355,-3370.97,0.00012524,2]
[346772489,1735276999391,-500.0,0.00012524,2]
[346772490,1735276999427,-500.0,0.00012524,2]
[346772491,1735276999465,-550.34,0.00012524,2]
[346772492,1735276999499,-500.0,0.00012524,2]
[346772493,1735276999532,-981.37,0.00012524,2]
[346772494,1735276999565,-627.30493395,0.00012524,2]
[346772495,1735276999597,-500.0,0.00012524,2]
[346772496,1735276999630,-11921.7,0.00012524,2]
[346772497,1735276999662,-500.0,0.00012524,2]
[346772498,1735276999699,-4019.4,0.00012524,2]
[346772499,1735276999731,-509.8,0.00012524,2]
[346772500,1735276999763,-6335.01,0.00012524,2]
[346772501,1735276999797,-2012.0,0.00012524,2]
[346772502,1735276999829,-3483.76,0.00012524,2]
[346772503,1735276999861,-729.1,0.00012524,2]
[346772504,1735276999893,-3557.92,0.00012524,2]
[346772505,1735276999925,-7858.98,0.00012524,2]
[346772506,1735276999957,-1825.68,0.00012524,2]
[346772507,1735276999988,-2301.1,0.00012524,2]
[346772508,1735277000019,-700.61,0.00012524,2]
[346772509,1735277000052,-1372.91,0.00012524,2]
[346772510,1735277000084,-2804.86,0.00012524,2]
[346772511,1735277000115,-1800.13,0.00012524,2]
[346772512,1735277000148,-3027.27,0.00012524,2]
[346772513,1735277000180,-1953.58,0.00012525,2]
[346772514,1735277000211,-2965.9,0.00012525,2]
[346772515,1735277000243,-3859.74,0.00012525,2]
[346772516,1735277000277,-5399.54,0.00012525,2]
[346772517,1735277000309,-6219.05,0.00012525,2]
[346772518,1735277000341,-33977.07,0.00012525,2]
[346772519,1735277000372,-3476.89,0.00012525,2]
[346772520,1735277000403,-2129.23,0.00012525,2]
[346772521,1735277000435,-3797.11,0.00012525,2]
[346772522,1735277000466,-15112.94,0.00012525,2]
[346772523,1735277000496,-904.4,0.00012525,2]
[346772524,1735277000528,-3214.19,0.00012525,2]
[346772525,1735277000560,-2894.47,0.00012525,2]
[346772526,1735277000592,-5704.43,0.00012526,2]
[346772527,1735277000621,-991.57,0.00012526,2]
[346772528,1735277000651,-2355.12,0.00012526,2]
[346772529,1735277000681,-2437.36,0.00012526,2]
[346772530,1735277000712,-1599.29,0.00012526,2]
[346772531,1735277000743,-4314.22,0.00012526,2]
[346772532,1735277000776,-3626.38,0.00012526,2]
[346772533,1735277000807,-509.8,0.00012527,2]
[346772534,1735277000840,-1395.75,0.00012527,2]
[346772535,1735277000872,-1449.56,0.00012527,2]
[346772536,1735277000905,-2254.69,0.00012527,2]
[346772537,1735277000937,-1800.13,0.00012527,2]
[346772538,1735277000969,-880.8838006,0.00012547,2]
[346772539,1735277001002,-583.1879132,0.00012547,2]
[346772540,1735277001035,-181.4141876,0.00012547,2]
[346772541,1735277001067,-215.50746946,0.00012547,2]
[346772542,1735277001099,-2219.6182808,0.00012547,2]
[346772543,1735277001131,-5290.37561288,0.00012556,2]
[346772544,1735277001162,-1961.4317511,0.00012556,2]
[346772545,1735277001195,-500.0,0.00012602,2]
[346772546,1735277001226,-5290.37561288,0.00012669,2]
[346772547,1735277001258,-1961.4317511,0.0001267,2]
[346772548,1735277001290,-500.0,0.00012739,2]
[346772549,1735277001323,-5290.37561288,0.00012783,2]
[346772550,1735277001353,-1961.4317511,0.00012783,2]
[346772551,1735277001385,-1455.01,0.00012795,2]
[346772552,1735277001418,-500.0,0.00012795,2]
[346772553,1735277001452,-843.69,0.00012795,2]
[346772554,1735277001483,-616.24,0.00012795,2]
[346772555,1735277001514,-500.0,0.00012795,2]
[346772556,1735277001545,-833.63,0.00012795,2]
[346772557,1735277001577,-500.0,0.00012795,2]
[346772558,1735277001609,-958.43,0.00012795,2]
[346772559,1735277001640,-832.99,0.00012795,2]
[346772560,1735277001671,-688.09,0.00012795,2]
[346772561,1735277001702,-1018.86,0.00012795,2]
[346772562,1735277001734,-1463.28,0.00012795,2]
[346772563,1735277001766,-1889.85,0.00012795,2]
[346772564,1735277001797,-500.0,0.00012795,2]
[346772565,1735277001828,-1672.31,0.00012795,2]
[346772566,1735277001859,-500.0,0.00012795,2]
[346772567,1735277001889,-615.47,0.00012795,2]
[346772568,1735277001922,-592.66,0.00012795,2]
[346772569,1735277001953,-500.0,0.00012795,2]
[346772570,1735277001984,-500.0,0.00012795,2]
[346772571,1735277002017,-500.0,0.00012795,2]
[346772572,1735277002048,-547.45,0.00012795,2]
[346772573,1735277002080,-500.0,0.00012795,2]
[346772574,1735277002112,-500.0,0.00012795,2]
[346772575,1735277002145,-500.0,0.00012795,2]
[346772576,1735277002177,-748.82,0.00012795,2]
[346772577,1735277002208,-966.23,0.00012795,2]
[346772578,1735277002241,-1468.86,0.00012795,2]
[346772579,1735277002273,-773.21,0.00012795,2]
[346772580,1735277002305,-1098.47,0.00012795,2]
[346772581,1735277002336,-745.07,0.00012795,2]
[346772582,1735277002369,-1280.45,0.00012795,2]
[346772583,1735277002401,-1748.04,0.00012795,2]
[346772584,1735277002435,-500.0,0.00012795,2]
[346772585,1735277002466,-1800.48,0.00012795,2]
[346772586,1735277002498,-614.54,0.00012795,2]
[346772587,1735277002529,-644.58367316,0.00012795,2]
[346772588,1735277002560,-765.23,0.00012795,2]
[346772589,1735277002769,-500.0,0.00012795,2]
[346772590,1735277002803,-500.0,0.00012795,2]
[346772591,1735277002835,-500.0,0.00012795,2]
[346772592,1735277002866,-544.95,0.00012795,2]
[346772593,1735277002897,-545.11,0.00012795,2]
[346772594,1735277002928,-2293.96,0.00012795,2]
[346772595,1735277002958,-500.0,0.00012795,2]
[346772596,1735277002989,-500.0,0.00012795,2]
[346772597,1735277003020,-888.5,0.00012795,2]
[346772598,1735277003053,-931.7,0.00012795,2]
[346772599,1735277003088,-809.07,0.00012795,2]
[346772600,1735277003125,-1477.25,0.00012795,2]
[346772601,1735277003163,-500.0,0.00012795,2]